bitfinex-derivatives/quotes_ETHF0:USTF0_20250824
["timestamp","ask_amount","ask_price","bid_price","bid_amount"]
[1755997461306,30.092,4789.4,4789.3,0.1592]
[1755997461307,33.2998,4789.4,4789.3,0.1592]
[1755997461505,52.6258,4789.4,4789.3,1.72732]
[1755997461706,52.6258,4789.4,4789.3,1.3096]
[1755997461897,52.6258,4789.4,4789.0,0.63584]
[1755997462102,0.41773,4789.3,4789.0,0.2181]
[1755997462300,0.41773,4789.3,4788.8,0.41776]
[1755997462498,0.41773,4789.3,4788.9,0.41775]
[1755997462807,0.41773,4789.3,4789.0,0.2181]
[1755997463102,33.71752,4789.4,4789.0,0.4541]
[1755997463303,33.71752,4789.4,4789.2,0.2181]
[1755997464001,19.318,4789.3,4788.8,0.63586]
[1755997464202,33.71752,4789.4,4788.8,0.41776]
[1755997464397,19.316,4789.3,4789.0,0.2181]
[1755997465402,0.41774,4789.2,4788.6,0.236]
[1755997465607,19.316,4789.3,4787.7,1.04465]
[1755997465608,19.316,4789.3,4788.7,0.29279709]
[1755997465908,3.62556,4788.9,4788.2,0.6133]
[1755997466096,19.312,4788.8,4788.3,0.292859]
[1755997466296,19.312,4788.8,4788.4,0.510959]
[1755997466503,19.312,4788.8,4788.5,0.292859]
[1755997466702,19.312,4788.8,4787.9,0.2181]
[1755997466904,3.2078,4788.1,4788.0,0.29299891]
[1755997467111,22.5228,4788.1,4788.0,0.2181]
[1755997467407,22.5228,4788.1,4788.0,0.74711635]
[1755997467807,22.5228,4788.1,4788.0,0.90635309]
[1755997468003,22.5228,4788.1,4788.0,0.6133]
[1755997468309,22.5228,4788.1,4788.0,0.90635498]
[1755997468510,22.5238,4788.1,4788.0,0.90635498]
[1755997468705,22.5254,4788.1,4788.0,0.90635498]
[1755997469209,23.0063765,4788.1,4788.0,0.90635498]
[1755997469714,23.4242065,4788.1,4788.0,0.90635498]
[1755997470107,23.4242065,4788.1,4788.0,0.29305498]
[1755997470307,0.0016,4787.6,4787.5,0.236]
[1755997470510,19.7845765,4787.6,4787.5,0.53184279]
[1755997471009,19.7845765,4787.6,4787.5,0.74994279]
[1755997471409,19.7845765,4787.6,4787.5,0.90914279]
[1755997471607,0.4835765,4787.6,4787.5,1.60544279]
[1755997471805,19.7855765,4787.6,4787.5,1.60544279]
[1755997472206,19.78536536,4787.6,4787.5,1.60544279]
[1755997472406,0.48076536,4787.6,4787.5,1.60544279]
[1755997472613,19.77776536,4787.6,4787.5,1.60544279]
[1755997473213,19.77936536,4787.6,4787.5,1.60544279]
[1755997473411,19.78036536,4787.6,4787.5,1.60544279]
[1755997473707,19.78036536,4787.6,4787.5,0.51394279]
[1755997476410,19.78036536,4787.6,4787.5,0.88744279]
[1755997476607,19.78036536,4787.6,4787.5,1.61004279]
[1755997477114,19.78036536,4787.6,4787.5,1.3142]
[1755997477311,19.78036536,4787.6,4787.5,1.60963964]
[1755997477509,19.2996,4787.6,4787.5,1.27283964]
[1755997477812,19.2996,4787.6,4787.5,0.51353964]
[1755997478411,19.2996,4787.6,4787.5,0.73363964]
[1755997478610,19.2996,4787.6,4787.5,0.88703964]
[1755997479217,19.2996,4787.6,4787.5,0.51353964]
[1755997480120,0.0026,4787.6,4787.5,1.60963964]
[1755997480317,19.2746,4787.6,4787.5,1.60963964]
[1755997480616,19.7538086,4787.6,4787.5,1.60963964]
[1755997481012,0.001,4787.9,4787.8,1.0945]
[1755997481211,19.27,4787.9,4787.8,2.04869964]
[1755997481417,19.269,4787.9,4787.8,2.31144079]
[1755997482514,0.4188,4788.5,4788.4,0.5392]
[1755997482718,19.6878,4788.5,4788.4,0.90823964]
[1755997482908,20.16697245,4788.5,4788.4,0.53473964]
[1755997484116,0.002,4787.5,4787.4,0.2393]
[1755997484307,19.27,4787.5,4787.4,0.53478082]
[1755997487221,19.27,4787.5,4787.4,0.53490619]
[1755997487418,19.7495555,4787.5,4787.4,0.53490619]
[1755997487619,19.7495555,4787.5,4787.4,0.53506297]
[1755997490425,19.7495555,4787.5,4787.4,0.53521574]
[1755997491222,26.9573555,4787.5,4787.4,0.29591574]
[1755997491418,0.41998,4786.4,4786.3,0.2393]
[1755997491618,19.69198,4786.4,4786.3,0.2393]
[1755997491819,20.17165598,4786.4,4786.3,0.2393]
[1755997492519,19.69198,4786.4,4786.3,0.2393]
[1755997493023,0.41799,4786.3,4786.0,0.2393]
[1755997493319,0.002,4786.1,4786.0,0.2393]
[1755997493626,0.48147321,4786.1,4786.0,1.59814746]
[1755997494223,0.48147321,4786.1,4786.0,1.3354]
[1755997494525,0.6084,4787.4,4787.3,1.3354]
[1755997495228,0.6084,4787.4,4787.3,1.62288267]
[1755997496825,1.26799,4787.4,4787.3,0.28748267]
[1755997497026,0.8501,4787.4,4787.3,0.28755429]
[1755997497425,0.8501,4787.4,4787.3,0.74695429]
[1755997497625,0.8501,4787.4,4787.3,0.7469962]
[1755997498729,0.8501,4787.4,4787.3,1.6229962]
[1755997499028,0.6094,4787.4,4787.3,1.6229962]
[1755997499228,0.8501,4787.4,4787.3,1.2861962]
[1755997499826,0.8501,4787.4,4787.3,1.6229962]
[1755997500025,0.2388,4787.4,4787.3,1.6229962]
[1755997500233,0.3696,4787.8,4787.7,1.3354]
[1755997500428,19.6676,4787.8,4787.7,1.3354]
[1755997500628,19.9074,4787.8,4787.7,1.3354]
[1755997501233,20.1481,4787.8,4787.7,0.9986]
[1755997501930,20.1481,4787.8,4787.3,0.3368]
[1755997502133,20.1481,4787.8,4787.1,3.2078]
[1755997502134,0.8491,4787.5,4787.4,0.89189054]
[1755997502333,0.8501,4787.5,4787.4,0.89189054]
[1755997502834,1.26799,4787.5,4787.4,0.89189054]
[1755997503330,0.6074,4787.5,4787.4,1.9313313]
[1755997503536,0.1483,4787.6,4787.5,1.3354]
[1755997503830,19.4323,4787.6,4787.5,1.9313313]
[1755997504131,19.284,4787.6,4787.5,1.9313313]
[1755997504336,0.633,4788.1,4788.0,1.3392]
[1755997504532,19.916,4788.1,4788.0,1.93504187]
[1755997504737,19.9172,4788.1,4788.0,1.93504187]
[1755997504935,0.6342,4788.1,4788.0,1.58734187]
[1755997505124,20.1622,4788.1,4788.0,1.29984076]
[1755997505331,20.1622,4788.1,4788.0,1.64754076]
[1755997505531,19.931,4788.1,4788.0,1.64754076]
[1755997505732,19.931,4788.1,4788.0,1.64743055]
[1755997505941,19.931,4788.1,4788.0,1.93486986]
[1755997506331,0.47750931,4788.1,4788.0,1.64737482]
[1755997506530,0.41776,4788.9,4788.0,1.64737482]
[1755997506531,0.57598,4788.7,4788.6,0.5359]
[1755997506732,1.52663337,4788.7,4788.6,1.64737482]
[1755997506927,1.10885337,4788.7,4788.6,1.64737482]
[1755997507134,0.86975337,4788.7,4788.6,1.64737482]
[1755997507335,0.47745337,4788.7,4788.6,1.93469692]
[1755997508035,19.82945337,4788.7,4788.6,1.93469692]
[1755997508432,0.47745337,4788.7,4788.6,1.93469692]
[1755997508741,3.62671,4789.5,4789.2,0.5359]
[1755997509040,30.81324452,4789.3,4789.2,1.93469692]
[1755997509233,50.16324452,4789.3,4789.2,1.64737482]
[1755997510533,50.39444452,4789.3,4789.2,0.91787482]
[1755997510738,50.39444452,4789.3,4789.2,0.30817482]
[1755997513142,0.3939,4788.9,4788.8,1.3392]
[1755997513330,19.7303,4788.9,4788.8,1.93315664]
[1755997513534,19.338,4788.9,4788.8,1.93315664]
[1755997514836,19.4962,4788.9,4788.8,1.93315664]
[1755997515137,30.097,4789.3,4788.8,1.95395664]
[1755997515338,0.81159,4789.7,4789.6,0.5359]
[1755997515538,20.19717362,4789.7,4789.6,1.3392]
[1755997516044,20.43627362,4789.7,4789.6,1.3392]
[1755997516239,19.982,4789.7,4789.6,1.3392]
[1755997516541,0.3973,4789.7,4789.6,1.3392]
[1755997516841,0.3951,4790.0,4789.9,1.3392]
[1755997517041,19.7409,4790.0,4789.5,3.6255]
[1755997517243,19.7409,4790.0,4789.6,0.76247548]
[1755997517244,0.3939,4789.7,4789.6,0.76247548]
[1755997517436,0.8642,4789.7,4789.6,0.4556]
[1755997518738,0.8642,4789.7,4789.6,0.7639]
[1755997519239,0.8642,4789.7,4789.6,0.9915]
[1755997519837,0.8642,4789.7,4789.6,0.6097]
[1755997520441,0.8642,4789.7,4789.6,0.9915]
[1755997520940,0.8642,4789.7,4789.6,1.3392]
[1755997521736,0.633,4789.7,4789.6,1.3392]
[1755997521937,19.7413,4789.7,4789.6,1.3392]
[1755997522338,19.9804,4789.7,4789.6,1.3392]
[1755997523333,19.9832,4789.7,4789.6,1.3392]
[1755997525143,20.2132,4789.7,4789.6,1.3392]
[1755997525532,20.2132,4789.7,4789.6,0.9915]
[1755997527239,20.2132,4789.7,4789.6,1.3392]
[1755997527443,20.68927455,4789.7,4789.6,1.3392]
[1755997528343,20.68927455,4789.7,4789.6,0.4556]
[1755997528739,20.68927455,4789.7,4789.6,1.185]
[1755997528939,20.68927455,4789.7,4789.6,1.3392]
[1755997529137,0.8632,4789.5,4789.4,0.235]
[1755997529337,1.28094,4789.2,4789.1,1.1116]
[1755997529542,20.59494,4789.2,4789.1,1.41913464]
[1755997529939,0.75081,4788.3,4788.2,0.2206]
[1755997530243,20.06481,4788.3,4788.1,0.235]
[1755997530443,0.41788,4787.5,4787.4,3.7437]
[1755997530640,0.1596,4787.1,4787.0,0.8836]
[1755997530943,19.5025,4787.1,4787.0,0.8836]
[1755997531137,19.5025,4787.1,4787.0,1.3392]
[1755997531838,19.5025,4787.1,4787.0,0.9915]
[1755997532033,19.5025,4787.1,4787.0,1.3392]
[1755997532942,19.5025,4787.1,4785.6,0.16663719]
[1755997532943,0.75097,4786.5,4786.4,0.2206]
[1755997533141,0.75101,4786.1,4786.0,0.7639]
[1755997533443,20.09801,4786.1,4786.0,0.7639]
[1755997533747,19.92461,4786.1,4786.0,1.3392]
[1755997534446,19.92591,4786.1,4786.0,1.3392]
[1755997535042,20.09981,4786.1,4786.0,0.9975]
[1755997535348,20.09981,4786.1,4786.0,0.2206]
[1755997535949,20.09981,4786.1,4786.0,0.4512]
[1755997536145,0.74442,4785.9,4785.8,3.2078]
[1755997536542,0.74442,4785.9,4785.8,3.4483]
[1755997537149,0.73835691,4785.9,4785.8,3.4483]
[1755997537441,0.73835691,4785.9,4785.8,3.2078]
[1755997537642,0.3264,4785.1,4785.0,0.2405]
[1755997537848,19.6604,4785.1,4785.0,0.2405]
[1755997538049,0.57032,4784.8,4784.7,1.013]
[1755997538348,0.57162,4784.8,4784.7,1.013]
[1755997538749,0.57162,4784.8,4784.7,1.3716]
[1755997540746,0.74452,4784.8,4784.7,1.3716]
[1755997540945,0.74452,4784.8,4784.7,1.013]
[1755997541147,0.74452,4784.8,4784.1,0.09615083]
[1755997541148,0.3264,4784.2,4784.1,0.09615083]
[1755997541448,22.8892,4784.2,4784.1,0.09615083]
[1755997543249,19.92937,4784.2,4784.1,1.46775083]
[1755997543443,19.93067,4784.2,4784.1,1.46775083]
[1755997543749,19.5125,4784.2,4784.1,1.46775083]
[1755997543941,19.5112,4784.2,4784.1,1.46775083]
[1755997544144,19.353,4784.2,4784.1,1.46775083]
[1755997544343,19.5065,4784.2,4784.1,1.46775083]
[1755997544537,19.6794,4784.2,4784.1,1.10915083]
[1755997545943,3.2078,4784.7,4784.1,1.46775083]
[1755997546148,19.5002,4784.6,4784.5,0.6239]
[1755997546343,19.5002,4784.6,4784.5,1.3716]
[1755997546543,19.5025,4784.6,4784.5,1.3716]
[1755997548040,19.5263,4784.6,4784.1,0.09615083]
[1755997548249,0.57167,4784.2,4784.1,0.63805083]
[1755997548450,19.91567,4784.2,4784.1,0.99665083]
[1755997548645,19.91567,4784.2,4784.1,1.46775083]
[1755997550546,23.29637,4784.2,4784.1,0.09615083]
[1755997553148,23.14147,4784.2,4784.1,1.46775083]
[1755997553344,23.31437,4784.2,4784.1,1.10915083]
[1755997553543,23.31437,4784.2,4784.1,0.33665083]
[1755997554148,3.95237,4784.2,4784.1,0.33665083]
[1755997554455,23.32437,4784.2,4784.1,0.09615083]
[1755997558558,23.31137,4784.2,4784.1,0.09615083]
[1755997559457,3.95237,4784.2,4784.1,0.09615083]
[1755997559766,23.13847,4784.2,4784.1,1.77105904]
[1755997560061,23.31137,4784.2,4784.1,0.09615083]
[1755997560358,23.78706141,4784.2,4784.1,0.39987046]
[1755997561758,23.78706141,4784.2,4784.1,0.62597046]
[1755997562055,23.79606141,4784.2,4784.1,0.39987046]
[1755997562863,23.79606141,4784.2,4784.1,0.64037046]
[1755997563158,23.79706141,4784.2,4784.1,1.41287046]
[1755997563758,23.79706141,4784.2,4784.1,0.64037046]
[1755997563956,23.79706141,4784.2,4784.1,0.33665083]
[1755997564153,23.79706141,4784.2,4784.1,0.64096523]
[1755997564461,4.42806141,4784.2,4784.1,1.01776523]
[1755997564661,23.79306141,4784.2,4784.1,1.40199008]
[1755997564857,4.25516141,4784.2,4784.1,1.74969008]
[1755997565062,23.61216141,4784.2,4784.1,1.74969008]
[1755997565263,23.18959141,4784.2,4784.1,2.01141298]
[1755997565559,23.19229141,4784.2,4784.1,0.66221298]
[1755997565757,23.36489141,4784.2,4784.1,0.66221298]
[1755997566069,4.00789141,4784.2,4784.1,1.99951298]
[1755997566266,23.36389141,4784.2,4784.1,1.99951298]
[1755997567160,23.36389141,4784.2,4784.1,2.19568566]
[1755997568462,23.36389141,4784.2,4784.1,0.85838566]
[1755997568966,23.36389141,4784.2,4784.1,0.66221298]
[1755997569868,23.36389141,4784.2,4784.1,0.89081298]
[1755997570061,23.36389141,4784.2,4784.1,0.66221298]
[1755997571165,23.36389141,4784.2,4784.1,1.11561298]
[1755997571372,23.17559141,4784.2,4784.1,1.99951298]
[1755997571568,23.17829141,4784.2,4784.1,0.89081298]
[1755997571765,23.35089141,4784.2,4784.1,0.66221298]
[1755997573769,23.35089141,4784.2,4784.1,0.35787373]
[1755997573964,23.35089141,4784.2,4784.1,0.65456005]
[1755997574163,4.01049141,4784.2,4784.1,0.88316005]
[1755997574363,23.17589141,4784.2,4784.1,1.99186005]
[1755997574773,23.34899141,4784.2,4784.1,1.64416005]
[1755997575865,23.34899141,4784.2,4784.1,0.65456005]
[1755997577171,23.34899141,4784.2,4784.1,0.39187363]
[1755997577370,23.34899141,4784.2,4784.1,0.6573517]
[1755997579074,23.34899141,4784.2,4784.1,0.6563517]
[1755997579672,23.34899141,4784.2,4784.1,0.39087363]
[1755997580470,3.83789141,4784.2,4784.1,1.72817363]
[1755997580673,23.15789141,4784.2,4784.1,1.99024307]
[1755997581077,23.33099141,4784.2,4784.1,1.99024307]
[1755997581273,23.33099141,4784.2,4784.1,1.64254307]
[1755997581472,23.15789141,4784.2,4784.1,1.99024307]
[1755997581672,23.15689141,4784.2,4784.1,1.99024307]
[1755997583474,19.80369141,4784.2,4784.1,1.99024307]
[1755997583776,19.80369141,4784.2,4784.1,1.99034944]
[1755997583975,19.80369141,4784.2,4784.1,2.1825922]
[1755997584576,19.96119141,4784.2,4784.1,2.1825922]
[1755997584779,20.13429141,4784.2,4784.1,1.99034944]
[1755997584976,20.13429141,4784.2,4784.1,0.88164944]
[1755997585173,23.34209141,4784.2,4784.1,0.65304944]
[1755997588574,23.34209141,4784.2,4784.1,0.09515083]
[1755997589479,23.32409141,4784.2,4784.1,0.32375083]
[1755997589779,23.32409141,4784.2,4784.1,0.09515083]
[1755997590866,23.32409141,4784.2,4784.1,0.54985083]
[1755997591879,23.31609141,4784.2,4784.1,1.69457317]
[1755997592174,3.68349141,4784.2,4784.1,1.69457317]
[1755997592376,19.302,4784.2,4784.1,1.69457317]
[1755997592675,19.93698392,4784.2,4784.1,1.69457317]
[1755997593678,19.93698392,4784.2,4784.1,1.70733501]
[1755997593876,19.93548392,4784.2,4784.1,1.70733501]
[1755997594080,0.47748392,4784.2,4784.1,1.70733501]
[1755997594279,19.77948392,4784.2,4784.1,1.70733501]
[1755997594979,0.47748392,4784.2,4784.1,1.70733501]
[1755997595180,19.77948392,4784.2,4784.1,1.70733501]
[1755997595375,19.93408392,4784.2,4784.1,1.70733501]
[1755997595582,20.10678392,4784.2,4784.1,1.70733501]
[1755997595976,19.93408392,4784.2,4784.1,1.70733501]
[1755997596582,19.93298392,4784.2,4784.1,1.70733501]
[1755997596883,19.77948392,4784.2,4784.1,1.70733501]
[1755997597676,0.47748392,4784.2,4784.1,1.70733501]
[1755997597884,19.302,4784.2,4784.1,1.70733501]
[1755997598279,19.4538,4784.2,4784.1,1.70733501]
[1755997598883,19.302,4784.2,4784.1,1.70733501]
[1755997599184,19.4566,4784.2,4784.1,1.70733501]
[1755997600281,19.4566,4784.2,4784.1,1.70720226]
[1755997600683,19.4555,4784.2,4784.1,1.70720226]
[1755997601583,19.4538,4784.2,4784.1,1.70720226]
[1755997601778,0.57105,4784.5,4784.4,0.3776]
[1755997601985,20.36311429,4784.5,4784.4,1.57465143]
[1755997603479,20.53581429,4784.5,4784.4,1.57445948]
[1755997603679,20.53581429,4784.5,4784.4,1.57444259]
[1755997604086,1.06211429,4784.5,4784.4,1.57441574]
[1755997604285,20.36211429,4784.5,4784.4,1.57441574]
[1755997606385,20.53481429,4784.5,4784.4,1.57441574]
[1755997606787,20.11666429,4784.5,4784.4,1.57441574]
[1755997607679,19.94396429,4784.5,4784.4,1.57441574]
[1755997608285,20.11666429,4784.5,4784.4,1.57441574]
[1755997608478,20.11666429,4784.5,4784.4,1.24141574]
[1755997610786,19.94396429,4784.5,4784.4,1.57441574]
[1755997611290,20.11666429,4784.5,4784.4,1.57441574]
[1755997611491,20.11466429,4784.5,4784.4,1.57441574]
[1755997612993,19.94196429,4784.5,4784.4,1.57441574]
[1755997613394,19.94196429,4784.5,4784.4,1.57862482]
[1755997613988,19.94196429,4784.5,4784.4,1.57861416]
[1755997614387,19.94196429,4784.5,4784.4,1.57860353]
[1755997615593,20.11366429,4784.5,4784.4,1.57860353]
[1755997615781,19.94096429,4784.5,4784.4,1.57860353]
[1755997616388,20.11366429,4784.5,4784.4,1.57860353]
[1755997616895,20.11366429,4784.5,4784.4,1.5786052]
[1755997617495,19.94096429,4784.5,4784.4,1.5786052]
[1755997619394,0.64396429,4784.5,4784.4,1.5786052]
[1755997619595,19.93996429,4784.5,4784.4,1.5786052]
[1755997620296,20.11266429,4784.5,4784.4,0.2787052]
[1755997621700,20.11266429,4784.5,4784.4,0.5001052]
[1755997621886,20.11266429,4784.5,4784.4,0.7205052]
[1755997622291,20.11266429,4784.5,4784.4,0.4418]
[1755997622491,20.11266429,4784.5,4784.4,0.72082119]
[1755997622786,0.81666429,4784.5,4784.4,0.72082119]
[1755997623099,20.11166429,4784.5,4784.4,1.27232119]
[1755997623398,20.11166429,4784.5,4784.4,1.56500403]
[1755997624199,0.64396429,4784.5,4784.4,1.56500403]
[1755997624499,19.93796429,4784.5,4784.4,1.56500403]
[1755997624689,0.64396429,4784.5,4784.4,1.56500403]
[1755997624893,19.93796429,4784.5,4784.4,1.56500403]
[1755997625799,20.11066429,4784.5,4784.4,1.56500403]
[1755997626103,20.11066429,4784.5,4784.4,0.70690403]
[1755997626495,20.11066429,4784.5,4784.4,0.26510403]
[1755997629290,20.11066429,4784.5,4784.4,0.09240403]
[1755997629495,20.11066429,4784.5,4784.4,0.09140403]
[1755997630200,19.78336429,4784.5,4784.1,0.09515083]
[1755997630403,0.41817,4784.2,4784.1,0.09515083]
[1755997630701,20.19953429,4784.2,4784.1,0.09515083]
[1755997631497,20.19953429,4784.2,4784.1,0.33515083]
[1755997632102,0.48936429,4784.2,4784.1,1.42925083]
[1755997632300,19.291,4784.2,4784.1,1.51673083]
[1755997632600,19.78036429,4784.2,4784.1,1.51673083]
[1755997632903,19.78036429,4784.2,4784.1,0.98483083]
[1755997633102,19.78036429,4784.2,4784.1,0.75333083]
[1755997633703,19.78036429,4784.2,4784.1,1.14483083]
[1755997633904,19.78036429,4784.2,4784.1,1.84743083]
[1755997634602,19.78036429,4784.2,4784.1,1.51673083]
[1755997635004,19.78036429,4784.2,4784.1,1.35673083]
[1755997635206,19.78036429,4784.2,4784.1,0.98483083]
[1755997636504,19.78036429,4784.2,4784.1,0.33515083]
[1755997638301,19.78036429,4784.2,4784.1,0.56665083]
[1755997638500,19.78036429,4784.2,4784.1,1.05735083]
[1755997638696,19.78036429,4784.2,4784.1,0.09515083]
[1755997640809,23.78036429,4784.2,4784.1,0.09515083]
[1755997642311,19.78036429,4784.2,4784.1,0.09515083]
[1755997643809,0.48936429,4784.2,4784.1,0.09515083]
[1755997644003,19.77736429,4784.2,4784.1,0.09515083]
[1755997644202,19.77836429,4784.2,4784.1,0.09515083]
[1755997648611,19.78486429,4784.2,4784.1,0.09515083]
[1755997648812,19.78486429,4784.2,4784.1,0.09265083]
[1755997651405,0.49716429,4784.2,4784.1,0.09265083]
[1755997651613,19.78516429,4784.2,4784.1,0.09265083]
[1755997653118,19.78296429,4784.2,4784.1,0.56415083]
[1755997653418,19.78296429,4784.2,4784.1,0.09265083]
[1755997653605,19.78296429,4784.2,4784.1,0.73365083]
[1755997653810,19.78296429,4784.2,4784.1,1.46385083]
[1755997654013,19.78296429,4784.2,4784.1,1.11515083]
[1755997655218,19.78296429,4784.2,4784.1,0.73365083]
[1755997655418,0.49466429,4784.2,4784.1,1.46385083]
[1755997655717,19.78066429,4784.2,4784.1,0.33265083]
[1755997656919,19.78066429,4784.2,4784.1,0.57365083]
[1755997659118,19.77966429,4784.2,4784.1,1.45185083]
[1755997660915,19.77966429,4784.2,4784.1,1.10315083]
[1755997661120,19.77966429,4784.2,4784.1,0.57365083]
[1755997661515,19.77966429,4784.2,4784.1,0.09265083]
[1755997669837,0.49466429,4784.2,4784.1,0.63295083]
[1755997670038,20.19183429,4784.2,4784.1,1.44815083]
[1755997671742,20.19183429,4784.2,4784.1,0.32895083]
[1755997672140,1.0456,4783.5,4782.1,0.4773]
[1755997672440,1.0456,4783.5,4782.7,1.1192]
[1755997672441,3.5971,4782.8,4782.7,1.1192]
[1755997672639,23.36546429,4782.8,4782.7,1.1192]
[1755997673434,23.12996429,4782.8,4782.7,1.1192]
[1755997674442,23.12996429,4782.8,4782.7,1.3555]
[1755997674640,23.36546429,4782.8,4782.7,1.3555]
[1755997675138,23.36546429,4782.8,4782.7,1.0068]
[1755997675336,0.57214,4782.3,4782.2,0.8782]
[1755997675536,20.33850429,4782.3,4782.2,0.8782]
[1755997675734,20.33850429,4782.3,4782.2,1.1145]
[1755997675934,20.33850429,4782.3,4782.2,1.3555]
[1755997676146,19.92016429,4782.3,4782.2,1.3555]
[1755997678636,19.76636429,4782.3,4782.2,1.3555]
[1755997678839,0.48936429,4782.3,4782.2,5.3555]
[1755997679039,19.76636429,4782.3,4782.2,1.3555]
[1755997680542,19.92016429,4782.3,4782.2,1.3555]
[1755997681146,20.15566429,4782.3,4782.2,1.3555]
[1755997681648,20.15566429,4782.3,4782.2,1.0068]
[1755997682547,20.15566429,4782.3,4782.2,1.3555]
[1755997683447,20.15466429,4782.3,4782.2,1.3555]
[1755997683748,19.6684,4782.3,4782.2,1.3555]
[1755997684148,19.4329,4782.3,4782.2,1.3555]
[1755997684343,19.276,4782.3,4782.2,1.3555]
[1755997684542,19.276,4782.3,4782.2,1.77385]
[1755997684742,3.2078,4782.8,4782.7,1.329]
[1755997684939,19.275,4782.8,4782.7,1.329]
[1755997685143,3.3577,4783.3,4783.2,1.329]
[1755997685339,3.2078,4783.3,4783.2,1.329]
[1755997685543,22.4828,4783.3,4783.2,1.60490673]
[1755997686048,23.29035,4783.3,4783.2,0.27590673]
[1755997686440,0.41829,4782.9,4782.8,0.4628]
[1755997686646,20.08259,4782.9,4782.8,0.73873564]
[1755997687048,19.428,4782.9,4782.8,1.60493564]
[1755997687854,19.4261,4782.9,4782.8,1.60493564]
[1755997688048,19.4249,4782.9,4782.8,1.60493564]
[1755997688545,0.153,4782.9,4782.8,1.60493564]
[1755997688750,19.427,4782.9,4782.8,1.60493564]
[1755997689652,0.153,4782.9,4782.8,1.60493564]
[1755997689848,19.4251,4782.9,4782.8,1.60493564]
[1755997690253,0.1511,4782.9,4782.8,1.60493564]
[1755997690454,0.1511,4782.9,4782.8,1.329]
[1755997690651,19.4241,4782.9,4782.8,1.6050343]
[1755997691147,19.426,4782.9,4782.8,1.6050343]
[1755997694159,0.153,4782.9,4782.8,1.6050343]
[1755997694351,19.4221,4782.9,4782.8,1.6050343]
[1755997695159,19.424,4782.9,4782.8,1.6050343]
[1755997695656,19.423,4782.9,4782.8,1.6050343]
[1755997695852,3.2078,4783.3,4782.8,1.3658343]
[1755997696058,3.3589,4783.3,4783.2,1.74726]
[1755997696258,22.6308,4783.3,4783.2,2.0232943]
[1755997696852,22.8671,4783.3,4783.2,2.0232943]
[1755997697060,22.8671,4783.3,4783.2,2.02459324]
[1755997700562,22.8671,4783.3,4783.2,2.02464619]
[1755997701061,3.5971,4783.3,4783.2,2.02464194]
[1755997701263,23.35808714,4783.3,4783.2,2.02464194]
[1755997702465,22.8641,4783.3,4783.2,2.02464194]
[1755997702964,3.3589,4783.3,4783.2,2.02464194]
[1755997703164,22.6259,4783.3,4783.2,2.02464194]
[1755997703964,3.3589,4783.3,4783.2,2.02464194]
[1755997704165,22.6249,4783.3,4783.2,2.02464194]
[1755997704464,3.3589,4783.3,4783.2,2.02464194]
[1755997704666,3.3608,4783.3,4783.2,2.02464194]
[1755997704959,22.6258,4783.3,4783.2,2.02464194]
[1755997705164,22.8621,4783.3,4783.2,2.02464194]
[1755997705361,23.35594122,4783.3,4783.2,0.27738194]
[1755997705566,23.35594122,4783.3,4783.2,0.03988194]
[1755997705860,23.35594122,4783.3,4782.5,0.2278]
[1755997705861,24.01229122,4783.3,4782.5,0.2278]
[1755997706165,0.49384122,4783.2,4782.5,0.2278]
[1755997706366,0.41832,4782.5,4782.4,0.2278]
[1755997706566,0.41834,4782.4,4782.2,0.2278]
[1755997707069,0.41835,4782.2,4782.0,0.2278]
[1755997707266,19.263,4782.1,4782.0,0.2278]
[1755997711559,1.04594,4781.9,4780.9,0.41846]
[1755997711766,0.41843,4781.3,4781.0,0.65345]
[1755997712065,19.261,4781.2,4781.1,0.2278]
[1755997712262,19.261,4781.2,4780.8,0.2278]
[1755997712467,0.41846,4780.9,4780.8,0.2278]
[1755997712665,19.67946,4780.9,4780.8,0.2278]
[1755997713262,19.261,4780.9,4780.8,0.2278]
[1755997715260,19.261,4780.9,4780.6,0.241]
[1755997715465,0.41847,4780.8,4780.5,0.241]
[1755997715866,19.67947,4780.9,4780.5,0.65949]
[1755997716268,19.67947,4780.9,4780.2,0.2276]
[1755997716269,0.41848,4780.7,4780.2,0.65952]
[1755997716464,0.41849,4780.6,4780.1,0.41853]
[1755997716672,3.2078,4781.1,4780.3,0.41851]
[1755997716673,19.261,4780.5,4780.3,0.41851]
[1755997717066,19.261,4780.5,4780.4,0.241]
[1755997717772,3.2078,4781.1,4780.3,0.41851]
[1755997717773,3.62625,4781.1,4780.6,0.3881]
[1755997717968,19.261,4781.0,4780.8,0.4686]
[1755997718167,3.2078,4781.1,4781.0,0.241]
[1755997718369,22.4688,4781.1,4781.0,0.241]
[1755997719467,0.41846,4781.0,4780.4,0.52]
[1755997719673,0.41846,4781.0,4780.6,0.241]
[1755997719874,0.41846,4781.0,4780.7,0.241]
[1755997720070,0.41846,4781.0,4780.8,0.241]
[1755997720370,22.4688,4781.1,4780.7,0.56558]
[1755997720572,22.88725,4781.1,4780.9,0.2276]
[1755997720773,22.88725,4781.1,4781.0,0.241]
[1755997722178,22.4688,4781.1,4781.0,0.241]
[1755997723675,0.41847,4780.8,4780.4,0.241]
[1755997723872,19.261,4780.7,4780.0,0.3266]
[1755997724174,19.261,4780.6,4779.9,3.85395]
[1755997724374,1.04615,4781.0,4780.2,0.241]
[1755997724375,19.261,4780.5,4780.2,0.241]
[1755997725083,0.41851,4780.4,4779.9,4.37395]
[1755997725273,0.41851,4780.4,4780.3,0.241]
[1755997725478,0.41852,4780.3,4780.1,0.241]
[1755997725673,19.6795,4780.5,4780.1,0.241]
[1755997725878,0.41851,4780.4,4780.2,0.241]
[1755997726075,19.261,4780.5,4780.3,0.52]
[1755997726281,3.2078,4780.6,4780.5,1.3152]
[1755997726580,19.261,4780.6,4780.5,1.3152]
[1755997726781,19.261,4780.6,4780.5,0.9886]
[1755997727181,19.261,4780.6,4780.5,0.241]
[1755997727775,19.261,4780.6,4780.3,0.241]
[1755997727979,0.41851,4780.4,4780.0,0.41854]
[1755997728181,0.41852,4780.3,4780.0,0.41854]
[1755997728484,19.261,4780.2,4780.1,0.241]
[1755997733284,19.261,4780.2,4779.3,0.4186]
[1755997733485,0.41857,4779.7,4779.5,0.5542]